fUST/lending_fUST_20240901
["ID","MTS","AMOUNT","RATE_DAILY","PERIOD"]
[336805524,1725177039250,-500.0,0.00032289,2]
[336805525,1725177039259,-500.0,0.00032289,2]
[336805526,1725177039268,-500.0,0.00032289,2]
[336805527,1725177039277,-500.0,0.00032289,2]
[336805528,1725177039286,-500.0,0.00032289,2]
[336805529,1725177039295,-500.0,0.00032289,2]
[336805530,1725177039304,-541.00885788,0.00032289,2]
[336805531,1725177039313,-500.0,0.00032289,2]
[336805532,1725177039322,-300.0,0.00032289,2]
[336805533,1725177039331,-243897.678266,0.0003229,4]
[336805534,1725177039341,-500.0,0.000323,31]
[336805535,1725177039350,-500.0,0.000323,31]
[336805536,1725177039359,-255780.74243011,0.000323,30]
[336805537,1725177039371,-132747.62677455,0.000323,30]
[336805538,1725177039381,-151.0,0.00032318,7]
[336805539,1725177039390,-151.0,0.00032318,7]
[336805540,1725177039399,-153.827959,0.00032318,7]
[336805541,1725177039408,-1161.580714,0.00032318,7]
[336805542,1725177039418,-151.0,0.00032318,7]
[336805543,1725177039427,-1161.580714,0.00032318,7]
[336805544,1725177039437,-201.257186,0.00032318,7]
[336805545,1725177039447,-201.257186,0.00032318,7]
[336805546,1725177039456,-331.739636,0.00032318,7]
[336805547,1725177039466,-331.739636,0.00032318,7]
[336805548,1725177039475,-764.950465,0.00032318,7]
[336805549,1725177039485,-764.950465,0.00032318,7]
[336805550,1725177039494,-151.0,0.00032318,7]
[336805551,1725177039504,-151.0,0.00032318,7]
[336805552,1725177039513,-151.0,0.00032318,7]
[336805553,1725177039525,-151.0,0.00032318,7]
[336805555,1725177039535,-151.0,0.00032318,7]
[336805556,1725177039545,-386.376947,0.00032318,7]
[336805558,1725177039554,-151.0,0.00032318,7]
[336805559,1725177039565,-386.376947,0.00032318,7]
[336805560,1725177039575,-151.0,0.00032318,7]
[336805561,1725177039584,-3900.590623,0.00032318,7]
[336805562,1725177039593,-151.0,0.00032318,7]
[336805563,1725177039604,-3900.590623,0.00032318,7]
[336805564,1725177039614,-151.0,0.00032318,7]
[336805565,1725177039623,-429.025458,0.00032318,7]
[336805566,1725177039632,-151.0,0.00032318,7]
[336805567,1725177039642,-429.025458,0.00032318,7]
[336805568,1725177039652,-150.0,0.00032322,2]
[336805570,1725177039663,-150.01,0.00032327,2]
[336805572,1725177039672,-2104.35153414,0.00032327,2]
[336805574,1725177039681,-10046.85553409,0.00032328,11]
[336805576,1725177039693,-174.7270216,0.00032328,31]
[336805578,1725177039702,-500.0,0.00032328,31]
[336805580,1725177039712,-500.0,0.00032328,31]
[336805582,1725177039722,-500.96254311,0.00032328,31]
[336805583,1725177039732,-503.10339769,0.00032328,31]
[336805584,1725177039741,-500.0,0.00032328,31]
[336805585,1725177039750,-501.91064117,0.00032328,31]
[336805586,1725177039759,-218.51742533,0.00032328,31]
[336805587,1725177039769,-500.0,0.00032328,31]
[336805588,1725177039779,-361.65,0.00032328,31]
[336805589,1725177039788,-500.0,0.00032328,31]
[336805590,1725177039797,-500.0,0.00032328,31]
[336805591,1725177039806,-510.13059136,0.00032328,31]
[336805592,1725177039815,-500.0,0.00032328,31]
[336805593,1725177039825,-500.0,0.00032328,31]
[336805594,1725177039834,-523.27598381,0.00032328,31]
[336805596,1725177039843,-504.63124899,0.00032328,31]
[336805598,1725177039853,-500.93254474,0.00032328,31]
[336805599,1725177039862,-204.48049542,0.00032328,31]
[336805600,1725177039874,-500.0,0.00032328,31]
[336805602,1725177039884,-500.0,0.00032328,31]
[336805603,1725177039895,-500.0,0.00032328,31]
[336805604,1725177039906,-500.0,0.00032328,31]
[336805605,1725177039915,-500.0,0.00032328,31]
[336805606,1725177039925,-500.0,0.00032328,31]
[336805607,1725177039935,-500.0,0.00032328,31]
[336805608,1725177039945,-500.0,0.00032328,31]
[336805609,1725177039957,-500.0,0.00032328,31]
[336805610,1725177039967,-508.27072791,0.00032328,31]
[336805611,1725177039976,-500.0,0.00032328,31]
[336805612,1725177039986,-500.0,0.00032328,31]
[336805613,1725177039995,-512.21258551,0.00032328,31]
[336805614,1725177040005,-500.0,0.00032328,31]
[336805615,1725177040014,-500.0,0.00032328,31]
[336805616,1725177040025,-500.0,0.00032328,31]
[336805617,1725177040036,-500.0,0.00032328,31]
[336805618,1725177040046,-500.0,0.00032328,31]
[336805619,1725177040056,-500.0,0.00032328,31]
[336805620,1725177040066,-500.0,0.00032328,31]
[336805621,1725177040076,-500.0,0.00032328,31]
[336805623,1725177040087,-500.0,0.00032328,31]
[336805624,1725177040096,-500.0,0.00032328,31]
[336805626,1725177040106,-500.0,0.00032328,31]
[336805628,1725177040116,-500.0,0.00032328,31]
[336805629,1725177040127,-500.0,0.00032328,31]
[336805630,1725177040137,-500.0,0.00032328,31]
[336805631,1725177040147,-642.78,0.00032328,31]
[336805632,1725177040157,-642.78,0.00032328,31]
[336805633,1725177040167,-642.78,0.00032328,31]
[336805634,1725177040177,-642.78,0.00032328,31]
[336805635,1725177040187,-500.0,0.00032328,31]
[336805636,1725177040197,-500.0,0.00032328,31]
[336805637,1725177040207,-500.0,0.00032328,31]
[336805638,1725177040217,-500.0,0.00032328,31]
[336805639,1725177040227,-500.0,0.00032328,31]
[336805640,1725177040237,-718.56,0.00032328,31]
[336805641,1725177040246,-718.56,0.00032328,31]
[336805642,1725177040256,-718.56,0.00032328,31]
[336805643,1725177040265,-508.20355681,0.00032328,31]
[336805644,1725177040275,-500.0,0.00032328,31]
[336805645,1725177040284,-500.0,0.00032328,31]
[336805646,1725177040295,-500.0,0.00032328,31]
[336805647,1725177040304,-500.0,0.00032328,31]
[336805648,1725177040315,-500.0,0.00032328,31]
[336805649,1725177040324,-500.0,0.00032328,31]
[336805650,1725177040334,-500.0,0.00032328,31]
[336805651,1725177040344,-500.0,0.00032328,31]
[336805652,1725177040355,-500.0,0.00032328,31]
[336805653,1725177040365,-500.0,0.00032328,31]
[336805654,1725177040375,-500.0,0.00032328,31]
[336805655,1725177040384,-500.0,0.00032328,31]
[336805656,1725177040394,-500.0,0.00032328,31]
[336805657,1725177040403,-500.0,0.00032328,31]
[336805658,1725177040413,-500.0,0.00032328,31]
[336805659,1725177040423,-500.0,0.00032328,31]
[336805660,1725177040431,-500.0,0.00032328,31]
[336805661,1725177040443,-500.0,0.00032328,31]
[336805662,1725177040452,-500.0,0.00032328,31]
[336805663,1725177040462,-500.0,0.00032328,30]
[336805664,1725177040472,-645.7,0.00032328,30]
[336805665,1725177040482,-500.0,0.00032328,31]
[336805666,1725177040491,-318.08,0.00032328,31]
[336805667,1725177040501,-260.38443879,0.00032328,31]
[336805668,1725177040511,-500.0,0.00032328,31]
[336805669,1725177040524,-500.0,0.00032328,31]
[336805670,1725177040534,-500.0,0.00032328,31]
[336805671,1725177040545,-501.45824141,0.00032328,31]
[336805672,1725177040555,-500.0,0.00032328,31]
[336805673,1725177040567,-500.0,0.00032328,31]
[336805674,1725177040576,-500.0,0.00032328,31]
[336805675,1725177040585,-502.28208066,0.00032328,31]
[336805676,1725177040596,-500.0,0.00032328,31]
[336805677,1725177040606,-500.0,0.00032328,31]
[336805678,1725177040616,-500.0,0.00032328,31]
[336805679,1725177040626,-500.0,0.00032328,31]
[336805680,1725177040638,-500.0,0.00032328,2]
[336805681,1725177040648,-500.0,0.00032328,31]
[336805682,1725177040658,-500.0,0.00032328,31]
[336805683,1725177040668,-500.0,0.00032328,31]
[336805684,1725177040678,-500.0,0.00032328,31]
[336805685,1725177040688,-500.0,0.00032328,31]
[336805686,1725177040698,-500.0,0.00032328,31]
[336805687,1725177040707,-500.0,0.00032328,31]
[336805688,1725177040717,-500.0,0.00032328,31]
[336805689,1725177040727,-500.0,0.00032328,31]
[336805690,1725177040736,-500.0,0.00032328,31]
[336805691,1725177040746,-500.0,0.00032328,31]
[336805692,1725177040755,-500.0,0.00032328,31]
[336805693,1725177040764,-500.0,0.00032328,31]
[336805694,1725177040774,-472.02,0.00032328,31]
[336805695,1725177040783,-156.92964547,0.00032328,31]
[336805696,1725177040793,-500.0,0.00032328,31]
[336805697,1725177040802,-500.0,0.00032328,31]
[336805698,1725177040812,-580.2,0.00032328,31]
[336805699,1725177040822,-500.0,0.00032328,31]
[336805700,1725177040832,-500.0,0.00032328,31]
[336805701,1725177040842,-500.0,0.00032328,31]
[336805702,1725177040852,-528.12,0.00032328,31]
[336805703,1725177040863,-500.0,0.00032328,31]
[336805704,1725177040872,-263.47649222,0.00032328,31]
[336805705,1725177040882,-500.0,0.00032328,31]
[336805706,1725177040891,-500.0,0.00032328,31]
[336805707,1725177040899,-500.0,0.00032328,31]
[336805708,1725177040909,-500.0,0.00032328,31]
[336805709,1725177040918,-336.38020804,0.00032328,31]
[336805710,1725177040928,-500.0,0.00032328,31]
[336805711,1725177040938,-500.0,0.00032328,31]
[336805712,1725177040959,-500.0,0.00032328,31]
[336805713,1725177040968,-500.0,0.00032328,31]
[336805714,1725177040977,-500.0,0.00032328,31]
[336805715,1725177040986,-500.0,0.00032328,31]
[336805716,1725177041112,-500.0,0.00032328,31]
[336805717,1725177041123,-538.99492156,0.00032328,31]
[336805718,1725177041133,-500.0,0.00032328,31]
[336805719,1725177041143,-500.0,0.00032328,31]
[336805720,1725177041152,-500.0,0.00032328,31]
[336805721,1725177041162,-500.0,0.00032328,31]
[336805722,1725177041171,-500.0,0.00032328,31]
[336805723,1725177041180,-500.0,0.00032328,31]
[336805724,1725177041194,-500.0,0.00032328,31]
[336805725,1725177041204,-500.0,0.00032328,31]
[336805726,1725177041213,-500.0,0.00032328,31]
[336805727,1725177041223,-500.0,0.00032328,31]
[336805728,1725177041233,-500.0,0.00032328,31]
[336805729,1725177041242,-310.67705888,0.00032328,31]
[336805730,1725177041252,-502.45607847,0.00032328,31]
[336805731,1725177041262,-507.84790138,0.00032328,31]
[336805732,1725177041271,-500.0,0.00032328,31]
[336805733,1725177041280,-500.0,0.00032328,31]
[336805734,1725177041290,-500.0,0.00032328,31]
[336805735,1725177041303,-500.0,0.00032328,31]
[336805736,1725177041315,-500.0,0.00032328,31]
[336805737,1725177041325,-619.57,0.00032328,31]
[336805738,1725177041334,-500.0,0.00032328,31]
[336805739,1725177041343,-500.0,0.00032328,31]
[336805740,1725177041352,-513.97692973,0.00032328,31]
[336805741,1725177041363,-500.0,0.00032328,31]
[336805742,1725177041373,-500.0,0.00032328,31]
[336805743,1725177041382,-500.0,0.00032328,31]
[336805744,1725177041391,-500.0,0.00032328,31]
[336805745,1725177041400,-500.0,0.00032328,30]
[336805746,1725177041415,-500.0,0.00032328,31]
[336805747,1725177041424,-500.0,0.00032328,31]
[336805748,1725177041433,-500.0,0.00032328,31]
[336805749,1725177041444,-500.0,0.00032328,31]
[336805750,1725177041453,-500.0,0.00032328,31]
[336805751,1725177041462,-500.0,0.00032328,31]
[336805752,1725177041472,-522.95674367,0.00032328,31]
[336805753,1725177041481,-245.26,0.00032328,31]
[336805754,1725177041490,-500.0,0.00032328,31]
[336805755,1725177041500,-500.0,0.00032328,31]
[336805756,1725177041511,-500.0,0.00032328,31]
[336805757,1725177041524,-500.0,0.00032328,31]
[336805758,1725177041534,-500.0,0.00032328,31]
[336805759,1725177041546,-500.0,0.00032328,31]
[336805760,1725177041557,-500.17385326,0.00032328,31]
[336805761,1725177041568,-500.0,0.00032328,31]
[336805762,1725177041577,-222.34160182,0.00032328,31]
[336805763,1725177041587,-500.0,0.00032328,7]
[336805764,1725177041597,-164.23416757,0.00032328,31]
[336805765,1725177041606,-500.0,0.00032328,31]
[336805766,1725177041615,-500.0,0.00032328,31]
[336805767,1725177041625,-500.55994172,0.00032328,31]
[336805768,1725177041635,-500.0,0.00032328,31]
[336805769,1725177041647,-500.0,0.00032328,14]
[336805770,1725177041659,-501.78731473,0.00032328,31]
[336805771,1725177041669,-500.0,0.00032328,31]
[336805772,1725177041678,-502.15848839,0.00032328,31]
[336805773,1725177041688,-501.06788684,0.00032328,31]
[336805774,1725177041697,-500.0,0.00032328,31]
[336805775,1725177041706,-500.0,0.00032328,31]
[336805776,1725177041716,-500.0,0.00032328,31]
[336805777,1725177041725,-500.0,0.00032328,31]
[336805778,1725177041735,-500.0,0.00032328,31]
[336805779,1725177041744,-500.0,0.00032328,31]
[336805780,1725177041754,-181.06408415,0.00032328,31]
[336805781,1725177041763,-151.774973,0.00032328,7]
[336805782,1725177041772,-151.0,0.00032328,7]
[336805783,1725177041781,-2000.0,0.00032328,90]
[336805784,1725177041790,-2000.0,0.00032328,90]
[336805785,1725177041799,-1293.94453885,0.00032328,90]
[336805786,1725177041808,-506.58361876,0.00032328,31]
[336805787,1725177041819,-505.47283577,0.00032328,31]
[336805788,1725177041828,-151.0,0.00032328,7]
[336805789,1725177041838,-151.0,0.00032328,7]
[336805790,1725177041847,-610.61391,0.00032328,7]
[336805791,1725177041856,-610.61391,0.00032328,7]
[336805792,1725177041865,-241.601638,0.00032328,7]
[336805793,1725177041874,-300.235608,0.00032328,7]
[336805794,1725177041883,-241.601638,0.00032328,7]
[336805795,1725177041892,-300.235608,0.00032328,7]
[336805796,1725177041901,-593.636096,0.00032328,7]
[336805797,1725177041911,-593.636096,0.00032328,7]
[336805798,1725177041920,-468.551508,0.00032328,7]
[336805799,1725177041931,-151.0,0.00032328,7]
[336805800,1725177041943,-151.0,0.00032328,7]
[336805801,1725177041953,-468.551508,0.00032328,7]
[336805802,1725177041963,-151.0,0.00032328,7]
[336805803,1725177041973,-151.0,0.00032328,7]
[336805804,1725177041982,-151.0,0.00032328,7]
[336805805,1725177041991,-157.217248,0.00032328,7]
[336805806,1725177042000,-157.217248,0.00032328,7]
[336805807,1725177042010,-151.0,0.00032328,7]
[336805808,1725177042019,-1161.580714,0.00032328,7]
[336805809,1725177042028,-1161.580714,0.00032328,7]
[336805810,1725177042037,-151.0,0.00032328,7]
[336805811,1725177042046,-151.0,0.00032328,7]
[336805812,1725177042055,-1161.580714,0.00032328,7]
[336805813,1725177042066,-1161.580714,0.00032328,7]
[336805814,1725177042075,-201.257186,0.00032328,7]
[336805815,1725177042085,-201.257186,0.00032328,7]
[336805816,1725177042095,-201.257186,0.00032328,7]
[336805817,1725177042104,-201.257186,0.00032328,7]
[336805818,1725177042113,-500.0,0.00032328,31]
[336805819,1725177042124,-500.0,0.00032328,31]
[336805820,1725177042133,-631.20436985,0.00032328,31]
[336805821,1725177042142,-331.739636,0.00032328,7]
[336805822,1725177042151,-331.739636,0.00032328,7]
[336805823,1725177042160,-500.0,0.00032328,31]
[336805824,1725177042169,-500.0,0.00032328,31]
[336805825,1725177042178,-331.739636,0.00032328,7]
[336805826,1725177042187,-500.0,0.00032328,31]
[336805827,1725177042197,-331.739636,0.00032328,7]
[336805828,1725177042206,-500.0,0.00032328,31]
[336805829,1725177042215,-500.0,0.00032328,31]
[336805830,1725177042224,-500.0,0.00032328,31]
[336805831,1725177042234,-500.0,0.00032328,31]
[336805832,1725177042243,-500.0,0.00032328,31]
[336805833,1725177042252,-500.0,0.00032328,31]
[336805834,1725177042261,-500.0,0.00032328,31]
[336805835,1725177042271,-503.65695092,0.00032328,31]
[336805836,1725177042280,-764.950465,0.00032328,7]
[336805837,1725177042289,-764.950465,0.00032328,7]
[336805838,1725177042299,-764.950465,0.00032328,7]
[336805839,1725177042308,-764.950465,0.00032328,7]
[336805840,1725177042317,-151.0,0.00032328,7]
[336805841,1725177042326,-202.481958,0.00032328,7]
[336805842,1725177042336,-151.0,0.00032328,7]
[336805843,1725177042346,-151.0,0.00032328,7]
[336805844,1725177042356,-151.0,0.00032328,7]
[336805845,1725177042366,-151.0,0.00032328,7]
[336805846,1725177042376,-151.0,0.00032328,7]
[336805847,1725177042385,-151.0,0.00032328,7]
[336805848,1725177042395,-266.08469,0.00032328,7]
[336805849,1725177042404,-386.376947,0.00032328,7]
[336805850,1725177042413,-386.376947,0.00032328,7]
[336805851,1725177042422,-386.376947,0.00032328,7]
[336805852,1725177042431,-386.376947,0.00032328,7]
[336805853,1725177042441,-7045.56,0.00032328,31]
[336805854,1725177042450,-151.0,0.00032328,7]
[336805855,1725177042459,-7045.56,0.00032328,31]
[336805856,1725177042468,-151.0,0.00032328,7]
[336805857,1725177042478,-7045.56,0.00032328,31]
[336805858,1725177042487,-7045.56,0.00032328,31]
[336805859,1725177042497,-7045.56,0.00032328,31]
[336805860,1725177042506,-7045.56,0.00032328,31]
[336805861,1725177042518,-7045.56,0.00032328,31]
[336805862,1725177042535,-7045.56,0.00032328,31]
[336805863,1725177042545,-7045.56,0.00032328,31]
[336805864,1725177042555,-7045.56,0.00032328,31]
[336805865,1725177042565,-7045.56,0.00032328,31]
[336805866,1725177042575,-3900.590623,0.00032328,7]
[336805867,1725177042584,-7045.56,0.00032328,31]
[336805869,1725177042593,-3900.590623,0.00032328,7]
[336805870,1725177042605,-94.57907393,0.00032328,31]
[336805896,1725177283628,1316.06065181,0.0002,2]
[336805902,1725178205905,846.0420623,0.00019307,2]
[336805994,1725178238343,-452.80666933,0.00025984,2]
[336805996,1725178238356,-13.25727639,0.00025984,2]
[336805998,1725178238366,-300.0,0.00027993,2]
[336806000,1725178238375,-24900.0,0.00027995,2]
[336806002,1725178238385,-209.330723,0.00028204,2]
[336806004,1725178238394,-209.330723,0.00029674,2]
[336806006,1725178238403,-282.0,0.0003,2]
[336806009,1725178238418,-504.94938683,0.0003,2]
[336806011,1725178238428,-5723.31656382,0.00030026,2]
[336806013,1725178238437,-5723.31656382,0.00030097,2]
[336806015,1725178238448,-2056.74,0.00030116,3]
[336806017,1725178238457,-215.07,0.00030116,3]
[336806019,1725178238467,-322.62,0.00030116,3]
[336806021,1725178238476,-1713.95,0.00030116,3]
[336806023,1725178238486,-500.0,0.00030125,2]
[336806025,1725178238496,-500.0,0.00030125,2]
[336806027,1725178238506,-254.88920494,0.00030125,2]
[336806029,1725178238516,-500.0,0.00030125,2]
[336806031,1725178238526,-500.0,0.00030125,2]
[336806033,1725178238535,-500.0,0.00030125,2]
[336806035,1725178238545,-500.0,0.00030125,2]
[336806038,1725178238555,-501.811096,0.00030125,2]
[336806040,1725178238564,-339.17362414,0.00030125,2]
[336806042,1725178238574,-500.0,0.00030125,2]
[336806044,1725178238584,-500.0,0.00030125,2]
[336806046,1725178238594,-500.0,0.00030125,2]
[336806048,1725178238604,-500.0,0.00030125,2]
[336806050,1725178238613,-500.0,0.00030125,2]
[336806052,1725178238623,-500.0,0.00030125,2]
[336806054,1725178238633,-500.0,0.00030125,2]
[336806056,1725178238642,-625.08142811,0.00030125,2]
[336806058,1725178238653,-500.0,0.00030125,2]
[336806060,1725178238663,-500.0,0.00030125,2]
[336806062,1725178238672,-500.0,0.00030125,2]
[336806064,1725178238681,-500.0,0.00030125,2]
[336806066,1725178238691,-500.0,0.00030125,2]
[336806069,1725178238701,-500.0,0.00030125,2]
[336806071,1725178238711,-500.0,0.00030125,2]
[336806073,1725178238720,-500.0,0.00030125,2]
[336806075,1725178238729,-500.0,0.00030125,2]
[336806077,1725178238738,-500.0,0.00030125,2]
[336806079,1725178238748,-500.0,0.00030125,2]
[336806081,1725178238757,-500.0,0.00030125,2]
[336806083,1725178238768,-500.0,0.00030125,2]
[336806085,1725178238777,-500.0,0.00030125,2]
[336806087,1725178238787,-500.0,0.00030125,2]
[336806089,1725178238796,-500.0,0.00030125,2]
[336806091,1725178238807,-500.0,0.00030125,2]
[336806093,1725178238817,-500.0,0.00030125,2]
[336806095,1725178238827,-500.0,0.00030125,2]
[336806097,1725178238837,-500.0,0.00030125,2]
[336806099,1725178238847,-500.0,0.00030125,2]
[336806100,1725178238857,-500.0,0.00030125,2]
[336806102,1725178238867,-500.0,0.00030125,2]
[336806104,1725178238878,-500.0,0.00030125,2]
[336806106,1725178238888,-500.0,0.00030125,2]
[336806108,1725178238899,-500.0,0.00030125,2]
[336806110,1725178238909,-500.0,0.00030125,2]
[336806111,1725178238919,-500.0,0.00030125,2]
[336806112,1725178238930,-500.0,0.00030125,2]
[336806114,1725178238940,-500.0,0.00030125,2]
[336806115,1725178238950,-500.0,0.00030125,2]
[336806116,1725178238959,-500.0,0.00030125,2]
[336806117,1725178238969,-500.0,0.00030125,2]
[336806118,1725178238978,-300.0,0.00030125,2]
[336806119,1725178238988,-6959.01542802,0.00030125,11]
[336806120,1725178238998,-77681.8289606,0.00030126,4]
[336806121,1725178239008,-500.0,0.00030136,31]
[336806122,1725178239020,-707.66,0.00030136,31]
[336806123,1725178239034,-500.0,0.00030136,31]
[336806124,1725178239044,-500.0,0.00030136,31]
[336806125,1725178239058,-1096.67,0.00030136,31]
[336806126,1725178239068,-500.0,0.00030136,31]
[336806127,1725178239078,-597.86,0.00030136,31]
[336806128,1725178239088,-500.0,0.00030136,31]
[336806129,1725178239099,-500.0,0.00030136,31]
[336806130,1725178239109,-500.0,0.00030136,31]
[336806131,1725178239119,-500.0,0.00030136,31]
[336806132,1725178239129,-500.0,0.00030136,31]
[336806133,1725178239138,-500.0,0.00030136,31]
[336806134,1725178239147,-500.0,0.00030136,31]
[336806135,1725178239157,-500.0,0.00030136,31]
[336806136,1725178239167,-500.0,0.00030136,31]
[336806137,1725178239177,-500.0,0.00030136,31]
[336806138,1725178239187,-500.0,0.00030136,31]
[336806139,1725178239197,-500.0,0.00030136,31]
[336806140,1725178239207,-500.0,0.00030136,31]
[336806141,1725178239217,-500.0,0.00030136,31]
[336806142,1725178239226,-500.0,0.00030136,30]
[336806143,1725178239235,-500.0,0.00030136,2]
[336806144,1725178239245,-558.37289941,0.00030136,31]
[336806145,1725178239254,-503.62821079,0.00030136,31]
[336806146,1725178239264,-500.0,0.00030136,31]
[336806147,1725178239273,-500.0,0.00030136,31]
[336806148,1725178239282,-500.0,0.00030136,31]
[336806149,1725178239292,-1688.34,0.00030136,31]
[336806150,1725178239302,-500.0,0.00030136,31]
[336806151,1725178239311,-500.0,0.00030136,31]
[336806152,1725178239321,-500.0,0.00030136,31]
[336806153,1725178239330,-500.0,0.00030136,31]
[336806154,1725178239341,-500.0,0.00030136,31]
[336806155,1725178239351,-500.0,0.00030136,31]
[336806156,1725178239360,-536.85408094,0.00030136,31]
[336806157,1725178239370,-1302.15,0.00030136,31]
[336806158,1725178239380,-500.0,0.00030136,31]
[336806159,1725178239390,-500.0,0.00030136,31]
[336806160,1725178239399,-500.0,0.00030136,31]
[336806161,1725178239409,-667.15,0.00030136,31]
[336806162,1725178239418,-1875.25,0.00030136,31]
[336806163,1725178239429,-500.0,0.00030136,31]
[336806164,1725178239439,-734.53,0.00030136,31]
[336806165,1725178239448,-2203.27,0.00030136,31]
[336806166,1725178239458,-1138.96,0.00030136,31]
[336806167,1725178239467,-1181.43,0.00030136,31]
[336806168,1725178239477,-500.71585318,0.00030136,31]
[336806169,1725178239486,-500.0,0.00030136,31]
[336806170,1725178239495,-1421.49,0.00030136,31]
[336806171,1725178239505,-500.0,0.00030136,31]
[336806172,1725178239515,-500.0,0.00030136,31]
[336806173,1725178239525,-1303.15,0.00030136,30]
[336806174,1725178239536,-500.0,0.00030136,2]
[336806175,1725178239545,-500.0,0.00030136,31]
[336806176,1725178239555,-2443.87,0.00030136,31]
[336806177,1725178239564,-796.26,0.00030136,31]
[336806178,1725178239575,-829.82,0.00030136,31]
[336806179,1725178239585,-1128.86,0.00030136,31]
[336806180,1725178239594,-5810.63,0.00030136,31]
[336806181,1725178239604,-501.16884278,0.00030136,31]
[336806182,1725178239613,-1114.0,0.00030136,31]
[336806183,1725178239623,-1216.01,0.00030136,31]
[336806184,1725178239631,-922.25,0.00030136,31]
[336806185,1725178239642,-607.57,0.00030136,31]
[336806186,1725178239652,-500.0,0.00030136,31]
[336806187,1725178239662,-1120.61,0.00030136,31]
[336806188,1725178239671,-500.0,0.00030136,31]
[336806189,1725178239681,-3328.18,0.00030136,31]
[336806190,1725178239691,-500.0,0.00030136,31]
[336806191,1725178239700,-500.0,0.00030136,31]
[336806192,1725178239709,-529.45,0.00030136,31]
[336806193,1725178239719,-500.0,0.00030136,31]
[336806194,1725178239729,-6658.25,0.00030136,31]
[336806195,1725178239738,-40869.03,0.00030136,8]
[336806196,1725178239748,-500.0,0.00030136,31]
[336806197,1725178239757,-1070.95,0.00030136,31]
[336806198,1725178239768,-1987.28,0.00030136,21]
[336806199,1725178239778,-1114.98,0.00030136,31]
[336806200,1725178239787,-1666.94,0.00030136,31]
[336806201,1725178239797,-4367.09,0.00030136,31]
[336806202,1725178239806,-500.0,0.00030136,31]
[336806203,1725178239816,-1377.41,0.00030136,31]
[336806204,1725178239827,-500.0,0.00030136,31]
[336806205,1725178239839,-500.0,0.00030136,31]
[336806206,1725178239849,-3380.87,0.00030136,31]
[336806207,1725178239859,-500.0,0.00030136,31]
[336806208,1725178239869,-500.0,0.00030136,31]
[336806209,1725178239878,-955.68,0.00030136,31]
[336806210,1725178239888,-502.05925854,0.00030136,31]
[336806211,1725178239898,-500.0,0.00030136,31]
[336806212,1725178239907,-500.0,0.00030136,31]
[336806213,1725178239917,-28686.6,0.00030136,31]
[336806214,1725178239930,-500.0,0.00030136,31]
[336806215,1725178239944,-1388.98,0.00030136,31]
[336806216,1725178239955,-500.0,0.00030136,31]
[336806217,1725178239965,-508.27449192,0.00030136,2]
[336806218,1725178239975,-1130.74,0.00030136,31]
[336806219,1725178239986,-9602.33,0.00030136,31]
[336806220,1725178239995,-500.0,0.00030136,2]